bitfinex/quotes_ETHUSD_20241101
["timestamp","ask_amount","ask_price","bid_price","bid_amount"]
[1730433339711,3.9952,2503.0,2502.6,0.8053]
[1730433340338,4.76587,2503.3,2502.6,0.8053]
[1730433340517,0.771,2503.3,2502.6,0.8053]
[1730433340720,3.99505,2503.1,2502.6,0.8053]
[1730433340914,3.99537,2502.9,2502.6,0.8053]
[1730433345632,3.99512,2503.1,2502.6,0.8053]
[1730433345832,3.99521,2503.0,2502.6,0.8053]
[1730433346345,3.99512,2503.1,2502.6,0.8053]
[1730433347151,7.99031,2503.1,2502.6,0.8053]
[1730433347315,3.99526,2503.0,2502.6,0.8053]
[1730433347952,3.99512,2503.1,2502.6,0.8053]
[1730433348551,7.99031,2503.1,2502.6,0.8053]
[1730433349251,7.99128,2502.8,2502.6,0.8053]
[1730433349426,3.99562,2502.8,2502.6,0.8053]
[1730433350629,7.99061,2503.0,2502.6,0.8053]
[1730433351154,3.0,2503.2,2502.6,4.80111]
[1730433351358,3.99516,2503.1,2502.6,0.8053]
[1730433351531,3.99521,2503.0,2502.6,0.8053]
[1730433352757,3.99515,2503.1,2502.6,0.8053]
[1730433352956,3.99523,2503.0,2502.6,0.8053]
[1730433353158,3.99454,2503.5,2502.6,0.480133]
[1730433353357,3.99454,2503.5,2502.9,0.7895]
[1730433353853,3.99454,2503.5,2502.9,4.78477]
[1730433354061,3.99467,2503.4,2502.9,0.7895]
[1730433354463,3.99454,2503.5,2502.9,0.7895]
[1730433354646,7.98907,2503.5,2502.9,4.78481]
[1730433355262,3.99453,2503.5,2502.9,5.662859]
[1730433355461,4.81053,2503.7,2503.0,3.9951]
[1730433355462,3.99427,2503.6,2503.0,3.9951]
[1730433355648,3.99413,2503.7,2503.1,4.74651]
[1730433356013,3.99413,2503.7,2503.1,0.7515]
[1730433356014,3.99435,2503.6,2503.1,0.7515]
[1730433356332,3.99413,2503.7,2503.1,4.7465]
[1730433356564,3.99413,2503.7,2503.1,1.7214695]
[1730433356723,3.99435,2503.6,2503.1,0.7515]
[1730433358427,3.99413,2503.7,2503.1,0.7515]
[1730433358773,3.99441,2503.5,2503.1,0.7515]
[1730433360844,3.99426,2503.6,2503.1,0.7515]
[1730433361943,3.99413,2503.7,2503.1,0.7515]
[1730433362141,3.99356,2504.1,2503.6,0.755]
[1730433362539,7.98712,2504.1,2503.6,0.755]
[1730433362743,3.99356,2504.1,2503.6,0.755]
[1730433363458,3.99361,2504.0,2503.6,0.755]
[1730433364674,3.99356,2504.1,2503.6,0.755]
[1730433365044,3.99356,2504.1,2503.6,4.74919]
[1730433365254,3.99356,2504.1,2503.6,0.755]
[1730433365451,3.9932,2504.3,2503.6,5.263863]
[1730433365452,6.99334,2504.2,2503.6,5.263863]
[1730433366077,6.99334,2504.2,2503.7,0.7825]
[1730433366261,3.0,2504.2,2503.7,0.7825]
[1730433366461,3.9932,2504.3,2503.7,4.77658]
[1730433366697,3.9932,2504.3,2503.7,1.7110333]
[1730433367192,3.99345,2504.1,2503.7,1.7110333]
[1730433367406,3.99345,2504.1,2503.7,0.7825]
[1730433368903,7.98642,2504.3,2503.7,4.77657]
[1730433369107,3.99329,2504.2,2503.7,4.77657]
[1730433370668,3.99319,2504.3,2503.7,4.77657]
[1730433371274,3.99331,2504.2,2503.7,0.7825]
[1730433371702,3.99374,2504.0,2503.7,0.7825]
[1730433372300,3.99338,2504.2,2503.7,0.7825]
[1730433372914,7.98677,2504.2,2503.7,0.7825]
[1730433373420,3.99355,2504.1,2503.7,0.7825]
[1730433374583,3.99363,2504.0,2503.7,0.7825]
[1730433375597,3.99355,2504.1,2503.7,0.7825]
[1730433376739,3.99361,2504.0,2503.7,0.7825]
[1730433377524,3.99411,2503.7,2503.4,2.01358323]
[1730433377744,4.82179,2504.0,2503.4,0.7695]
[1730433378602,3.99432,2503.6,2503.4,0.7695]
[1730433378748,9.49410066,2503.8,2503.4,0.7695]
[1730433379073,5.50004066,2503.8,2503.4,0.7695]
[1730433379813,3.9941,2503.7,2503.4,0.7695]
[1730433380026,5.50004066,2503.8,2503.4,0.7695]
[1730433380307,1.50602066,2503.6,2503.4,0.7695]
[1730433380515,1.50602066,2503.6,2503.1,0.7986]
[1730433380516,3.99461,2503.4,2503.1,0.7986]
[1730433380736,3.99478,2503.3,2503.1,0.7986]
[1730433380943,3.99488,2503.2,2502.9,2.5190894]
[1730433381139,3.99489,2503.2,2502.9,2.5190894]
[1730433383139,3.99505,2503.1,2502.9,2.5190894]
[1730433383333,3.99489,2503.2,2502.9,2.5190894]
[1730433383537,3.99489,2503.2,2502.9,0.7986]
[1730433383961,3.99504,2503.1,2502.9,0.7986]
[1730433385165,3.99489,2503.2,2502.9,0.7986]
[1730433385659,3.36574641,2503.5,2503.0,3.99506]
[1730433385821,3.99473,2503.3,2502.9,0.7986]
[1730433386028,7.98955,2503.3,2502.9,0.7986]
[1730433386250,3.99492,2503.2,2502.9,0.7986]
[1730433386454,3.99473,2503.3,2502.9,0.7986]
[1730433386768,3.99504,2503.1,2502.9,0.7986]
[1730433387529,3.99504,2503.1,2502.5,3.99589]
[1730433387530,3.9952,2503.0,2502.6,0.8206]
[1730433388268,0.7566,2503.2,2502.6,0.8206]
[1730433388454,3.99546,2502.9,2502.6,0.8206]
[1730433388631,7.99054,2503.0,2502.6,0.8206]
[1730433388824,3.99524,2503.0,2502.6,0.8206]
[1730433389352,4.75156,2503.2,2502.6,0.8206]
[1730433389353,3.99548,2502.9,2502.6,0.8206]
[1730433389940,7.991,2502.9,2502.6,0.8206]
[1730433390327,7.36087641,2503.1,2502.6,0.8206]
[1730433390528,3.99529,2503.0,2502.6,0.8206]
[1730433391465,3.99529,2503.0,2502.6,0.81955822]
[1730433391840,7.36087641,2503.1,2502.6,0.81955822]
[1730433392023,11.35606641,2503.1,2502.6,0.81955822]
[1730433392226,3.99535,2503.0,2502.6,0.81955822]
[1730433392439,3.99537,2502.9,2502.6,0.81955822]
[1730433392865,7.36087641,2503.1,2502.6,0.81955822]
[1730433393061,3.99522,2503.0,2502.6,0.81955822]
[1730433393233,7.36087641,2503.1,2502.6,0.81955822]
[1730433393435,3.99513,2503.1,2502.6,0.81955822]
[1730433394262,3.9948,2503.3,2502.6,0.81955822]
[1730433394427,3.9948,2503.3,2502.8,0.8142]
[1730433394633,3.9948,2503.3,2502.8,4.80966]
[1730433395528,3.0,2503.5,2503.0,4.75969]
[1730433395934,3.0,2503.5,2503.0,5.635187]
[1730433396932,3.99426,2503.6,2503.0,5.635187]
[1730433397441,7.12774641,2503.8,2503.0,1.640097]
[1730433397442,3.99466,2503.4,2503.0,1.640097]
[1730433397640,3.99466,2503.4,2503.0,0.7646]
[1730433398059,3.99453,2503.5,2503.0,0.7646]
[1730433398368,3.36574641,2503.5,2503.0,0.7646]
[1730433398584,3.99482,2503.3,2503.0,0.7646]
[1730433399276,3.99489,2503.2,2503.0,0.7646]
[1730433399634,3.99504,2503.1,2502.6,0.7731]
[1730433400183,3.99482,2503.3,2502.7,3.99565]
[1730433400384,3.99482,2503.3,2502.8,4.82013]
[1730433400952,3.99482,2503.3,2502.7,3.99565]
[1730433400953,3.99411,2503.7,2503.1,3.99492]
[1730433401284,3.99411,2503.7,2503.1,4.07481273]
[1730433401489,3.99411,2503.7,2503.2,0.8086]
[1730433402095,3.99411,2503.7,2503.2,5.283832]
[1730433404087,3.99411,2503.7,2503.2,1.288952]
[1730433405091,3.99436,2503.6,2503.2,0.8086]
[1730433405842,3.99411,2503.7,2503.2,0.8086]
[1730433406492,3.83,2504.2,2504.0,3.9935]
[1730433406701,3.99278,2504.6,2504.1,0.47612]
[1730433406862,3.99278,2504.6,2504.0,3.9935]
[1730433407186,3.9925,2504.7,2504.1,3.99342]
[1730433407483,3.9925,2504.7,2504.0,3.9935]
[1730433407484,3.9925,2504.7,2504.0,3.99349]
[1730433407685,3.99285,2504.5,2504.0,3.99349]
[1730433408395,3.0,2504.6,2504.1,3.99343]
[1730433409298,3.0,2504.6,2504.2,0.8127]
[1730433409997,3.99235,2504.8,2504.2,4.80596]
[1730433410354,3.99249,2504.7,2504.2,0.8127]
[1730433410912,3.99235,2504.8,2504.2,0.8127]
[1730433411104,3.99235,2504.8,2504.3,4.07296428]
[1730433411402,3.99235,2504.8,2504.2,5.3741484]
[1730433411993,3.99235,2504.8,2504.3,0.07985427]
[1730433412770,3.9925,2504.7,2504.2,5.3741484]
[1730433413292,3.9923,2504.9,2504.2,5.3740684]
[1730433413518,3.99255,2504.7,2504.2,4.8059]
[1730433416676,3.99255,2504.7,2504.3,0.07985418]
[1730433417313,7.98514,2504.7,2504.2,0.8127]
[1730433417998,3.99255,2504.7,2504.2,0.8127]
[1730433418612,3.99268,2504.6,2504.2,0.8127]
[1730433418985,3.99255,2504.7,2504.2,0.8127]
[1730433419195,3.99255,2504.7,2504.3,0.480613]
[1730433420519,7.98519,2504.7,2504.3,0.480613]
[1730433420820,3.99255,2504.7,2504.3,0.480613]
[1730433422814,3.99255,2504.7,2504.3,0.56046707]
[1730433423177,3.99255,2504.7,2504.3,0.480613]
[1730433423377,3.99255,2504.7,2504.4,0.5286593]
[1730433423708,3.99266,2504.6,2504.4,0.5286593]
[1730433423882,3.99266,2504.6,2503.4,6.99453]
[1730433423883,3.36574641,2504.6,2503.7,0.8039]
[1730433424159,3.0,2504.7,2503.7,0.8039]
[1730433424160,3.99387,2503.9,2503.7,0.8039]
[1730433424723,3.99353,2504.1,2503.7,0.8039]
[1730433425452,3.99362,2504.0,2503.7,0.8039]
[1730433425649,3.99353,2504.1,2503.7,0.8039]
[1730433425811,3.9938,2503.9,2503.7,0.8039]
[1730433426656,3.99353,2504.1,2503.7,0.8039]
[1730433426657,7.98713,2504.1,2503.7,0.8039]
[1730433426859,3.99353,2504.1,2503.7,0.8039]
[1730433428276,3.99392,2503.8,2503.7,0.8039]
[1730433428596,3.9939,2503.9,2503.7,0.8039]
[1730433428728,3.99364,2504.0,2503.7,0.8039]
[1730433429134,3.99336,2504.2,2503.7,0.8039]
[1730433429355,3.99314,2504.3,2503.7,4.79783]
[1730433431226,4.74716,2504.4,2503.7,5.677046]
[1730433431544,3.99314,2504.3,2503.7,5.677046]
[1730433431745,4.74716,2504.4,2503.7,5.677046]
[1730433431746,3.9933,2504.2,2503.7,5.677046]
[1730433431964,3.9933,2504.2,2503.7,4.79783]
[1730433434282,3.9933,2504.2,2503.7,0.8039]
[1730433434648,3.36574641,2504.1,2502.9,3.84598416]
[1730433434846,8.77872,2504.0,2503.4,3.99456]
[1730433435061,3.99361,2504.0,2503.5,4.82169]
[1730433435300,3.99338,2504.2,2503.6,0.8273]
[1730433436206,3.99338,2504.2,2503.7,3.99408]
[1730433436903,3.99338,2504.2,2503.6,0.8273]
[1730433437200,7.98677,2504.2,2503.6,4.82153]
[1730433437805,3.99338,2504.2,2503.6,4.82153]
[1730433437980,3.99345,2504.1,2503.6,4.82153]
[1730433438884,3.99345,2504.1,2503.6,0.8273]
[1730433439814,3.99338,2504.2,2503.6,4.82152]
[1730433439965,3.99338,2504.2,2503.6,5.7904955]
[1730433440286,7.98682,2504.2,2503.6,5.7904955]
[1730433441158,3.99338,2504.2,2503.6,5.7904955]
[1730433441355,3.99345,2504.1,2503.6,5.7904955]
[1730433441698,3.99338,2504.2,2503.6,5.7904955]
[1730433443292,3.99338,2504.2,2503.7,4.07395319]
[1730433444004,3.99338,2504.2,2503.7,3.99408]
[1730433444174,3.99338,2504.2,2503.7,4.07395309]
[1730433444359,3.99338,2504.2,2503.7,3.99408]
[1730433444706,3.99338,2504.2,2503.7,4.97254155]
[1730433444872,3.99338,2504.2,2503.7,5.05241463]
[1730433445204,3.99338,2504.2,2503.7,1.05833463]
[1730433445903,3.99338,2504.2,2503.6,4.82153]
[1730433446077,7.98682,2504.2,2503.6,4.82153]
[1730433446259,3.99338,2504.2,2503.6,4.82153]
[1730433446467,3.99338,2504.2,2503.7,0.07987312]
[1730433447503,3.99338,2504.2,2503.6,4.82153]
[1730433448263,3.99366,2504.0,2503.6,0.8273]
[1730433448576,5.49947449,2504.0,2503.6,0.8273]
[1730433449304,1.50581449,2504.0,2503.6,0.8273]
[1730433450608,3.99354,2504.1,2503.6,0.8273]
[1730433450832,4.77264,2504.1,2503.6,0.8273]
[1730433451142,3.99364,2504.0,2503.6,0.8273]
[1730433451710,3.99402,2503.8,2503.6,0.8273]
[1730433452139,3.99402,2503.8,2503.4,0.751]
[1730433454028,3.36468437,2503.9,2503.4,0.751]
[1730433455013,3.99397,2503.8,2503.4,0.751]
[1730433457346,3.99397,2503.8,2503.0,3.99513]
[1730433457646,4.78674,2503.6,2503.1,1.2173119]
[1730433458330,4.78674,2503.6,2503.1,5.2123219]
[1730433458732,4.78674,2503.6,2503.1,0.7879]
[1730433458928,3.36468437,2503.3,2502.6,3.99573]
[1730433459266,8.12954437,2503.1,2502.5,3.996]
[1730433459417,8.12954437,2503.1,2502.6,0.7571]
[1730433460437,8.12954437,2503.1,2502.6,4.75294]
[1730433460438,4.13438437,2503.1,2502.6,4.75294]
[1730433461255,3.36468437,2503.3,2502.7,0.0799108]
[1730433461473,3.36468437,2503.5,2503.0,3.99518]
[1730433461643,3.99428,2503.6,2503.0,7.99027]
[1730433461941,3.99428,2503.6,2503.1,0.833]
[1730433462942,4.16098437,2503.7,2503.1,4.82792]
[1730433463153,8.15507437,2503.7,2503.1,4.82792]
[1730433463334,8.15507437,2503.7,2503.1,0.833]
[1730433463514,3.99428,2503.6,2503.1,0.833]
[1730433464115,4.16098437,2503.7,2503.1,4.82791]
[1730433464300,8.15507437,2503.7,2503.1,4.82791]
[1730433466150,7.98864,2503.6,2503.1,0.833]
[1730433466300,7.98865,2503.6,2503.1,0.833]
[1730433466648,3.99429,2503.6,2503.1,0.833]
[1730433466848,3.99477,2503.3,2502.8,0.8206]
[1730433467052,3.99477,2503.3,2502.5,0.83679661]
[1730433467053,3.36468437,2503.1,2502.5,3.99599]
[1730433467237,7.35982437,2503.1,2502.6,0.7696]
[1730433468111,0.8018,2503.2,2502.6,4.84523704]
[1730433468309,3.99481,2503.3,2502.7,3.99557]
[1730433469849,3.99481,2503.3,2502.8,3.99547]
[1730433470348,3.99481,2503.3,2502.7,3.99567]
[1730433470717,3.99481,2503.3,2502.7,4.96420538]
[1730433471525,3.9949,2503.2,2502.7,0.96853538]
[1730433471740,3.99481,2503.3,2502.7,4.96418538]
[1730433472265,3.99481,2503.3,2502.8,3.99548]
[1730433472407,3.99497,2503.2,2502.9,0.7529]
[1730433472616,3.99474,2503.3,2502.9,0.7529]
[1730433472816,3.99466,2503.4,2502.9,0.7529]
[1730433473321,3.99475,2503.3,2502.9,0.7529]
[1730433474237,3.36468437,2503.5,2502.9,0.7529]
[1730433474561,3.99482,2503.3,2502.9,0.7529]
[1730433475269,3.36468437,2503.5,2502.6,3.9957]
[1730433475473,3.99487,2503.3,2502.7,4.7485]
[1730433475633,4.7877,2503.4,2502.7,4.74857]
[1730433475836,3.99474,2503.3,2502.7,4.74857]
[1730433476491,7.98956,2503.3,2502.7,4.74857]
[1730433477235,3.99474,2503.3,2502.7,4.74857]
[1730433477437,7.98956,2503.3,2502.7,4.74857]
[1730433478178,3.99474,2503.3,2502.7,3.99567]
[1730433478380,3.99492,2503.2,2502.7,3.99567]
[1730433479775,3.99474,2503.3,2502.7,4.876908]
[1730433479947,3.99474,2503.3,2502.8,0.787]
[1730433480172,3.99525,2503.0,2502.8,0.787]
[1730433480369,3.99491,2503.2,2502.8,0.787]
[1730433481055,3.99521,2503.0,2502.5,0.787]
[1730433481256,3.99521,2503.0,2502.5,4.78297]
[1730433482084,3.99521,2503.0,2502.6,0.478297]
[1730433483093,1.50686297,2502.9,2502.5,0.787]
[1730433483302,5.50231297,2502.9,2502.5,0.787]
[1730433483657,1.50686297,2502.9,2502.5,0.787]
[1730433484369,4.78471,2503.0,2502.5,4.8629111]
[1730433484569,4.78471,2503.0,2502.6,0.48629111]
[1730433488087,8.78004,2503.0,2502.5,0.787]
[1730433488511,4.78471,2503.0,2502.3,4.76803]
[1730433489232,3.99554,2502.8,2502.3,4.76802]
[1730433489528,3.99554,2502.8,2502.3,5.32850166]
[1730433490501,3.99573,2502.7,2502.1,3.99651]
[1730433490688,3.99573,2502.7,2502.0,0.83679661]
[1730433490689,4.82714,2502.6,2502.0,4.79268]
[1730433490889,4.82714,2502.6,2502.1,3.99659]
[1730433491417,0.8313,2502.6,2502.2,3.99647]
[1730433492516,0.8313,2502.6,2502.1,4.875527]
[1730433493091,0.8313,2502.6,2502.1,4.9554491]
[1730433493294,0.8313,2502.6,2502.1,8.9519991]
[1730433493634,0.8313,2502.6,2502.1,4.875487]
[1730433493853,0.8313,2502.6,2502.2,0.5671387]
[1730433494625,3.3669268,2503.0,2502.2,0.5671387]
[1730433494626,3.99538,2502.9,2502.3,3.99618]
[1730433494825,3.3669268,2503.0,2502.4,0.87582211]
[1730433495427,3.3669268,2503.0,2502.4,0.7959]
[1730433495736,7.3622568,2503.0,2502.5,4.55510928]
[1730433495921,7.3622368,2503.0,2502.5,0.479208]
[1730433496090,7.3622368,2503.0,2502.4,0.7959]
[1730433496433,3.99552,2502.8,2502.4,0.7959]
[1730433496732,0.7625,2502.7,2502.2,5.3277187]
[1730433497101,0.7625,2502.7,2502.2,5.4076383]
[1730433497332,3.99552,2502.8,2502.3,3.99631]
[1730433498238,7.99116,2502.8,2502.2,5.4076083]
[1730433498417,3.99552,2502.8,2502.3,4.92977913]
[1730433498820,0.7625,2502.9,2502.4,4.07603708]
[1730433499085,0.7625,2502.9,2502.4,3.99612]
[1730433500830,3.99529,2503.0,2502.5,4.77139]
[1730433501221,7.99061,2503.0,2502.5,4.77139]
[1730433501736,7.99061,2503.0,2502.5,0.7754]
[1730433502497,3.99549,2502.9,2502.5,0.7754]
[1730433502697,3.99569,2502.7,2502.3,0.7754]
[1730433503428,4.79858,2502.9,2502.3,4.77171]
[1730433503727,4.79858,2502.9,2502.4,3.99613]
[1730433503906,3.3669268,2503.0,2502.5,3.99598]
[1730433504107,7.99025,2503.1,2502.6,0.7754]
[1730433504320,3.9951,2503.1,2502.6,0.7754]
[1730433504549,7.99027,2503.1,2502.6,0.7754]
[1730433505346,3.99523,2503.0,2502.6,0.7754]
[1730433506349,0.8032,2503.2,2502.7,4.07558261]
[1730433506520,7.3617568,2503.3,2502.8,3.99543]
[1730433506521,5.5014606,2503.3,2502.8,3.99543]
[1730433506843,1.5066306,2503.1,2502.7,3.99567]
[1730433508825,1.5066306,2503.1,2502.7,3.99559]
[1730433509023,1.5066306,2503.1,2502.8,0.52561083]
[1730433510232,1.5066306,2502.9,2502.6,0.7754]
[1730433514974,1.5066306,2502.9,2502.4,1.65909661]
[1730433515635,5.5020206,2502.9,2502.4,5.65524661]
[1730433516640,1.5066306,2502.9,2502.5,4.07589201]
[1730433516855,1.5066306,2502.9,2502.5,5.27625462]
[1730433517765,1.5066306,2502.9,2502.5,5.19634261]
[1730433517978,1.5066306,2502.9,2502.5,3.99598]
[1730433520189,1.5066306,2502.9,2502.5,4.83277661]
[1730433522189,8.81171,2503.1,2502.5,4.83277661]
[1730433522190,10.3183406,2503.1,2502.5,4.83277661]
[1730433522357,10.3183006,2503.1,2502.5,4.83277661]
[1730433522559,6.3231606,2503.1,2502.5,4.83277661]
[1730433522772,5.5014106,2503.3,2502.7,0.7734]
[1730433522967,5.5014106,2503.3,2502.7,4.76897]
[1730433523453,3.99492,2503.2,2502.7,4.76897]
[1730433524198,5.5014106,2503.3,2502.7,8.84445339]
[1730433524498,5.5014106,2503.3,2502.7,4.76897]
[1730433524795,5.5018006,2503.1,2502.6,3.99583]
[1730433524981,5.5018006,2503.1,2502.5,5.63536661]
[1730433525302,9.4969706,2503.1,2502.6,0.29960737]
[1730433525528,1.5066306,2503.1,2502.7,3.99564]
[1730433525689,1.5066306,2503.1,2502.7,0.96310066]
[1730433526025,5.5017506,2503.1,2502.5,9.63125661]
[1730433526236,1.5066306,2503.1,2502.6,0.2996094]
[1730433526523,1.5066306,2503.1,2502.5,1.63939661]
[1730433526723,5.5017106,2503.1,2502.6,0.29962349]
[1730433526923,5.5017106,2503.1,2502.5,5.63529661]
[1730433527127,5.5017106,2503.1,2502.6,0.29962345]
[1730433527329,5.5017106,2503.1,2502.5,9.63119661]
[1730433527627,5.5017106,2503.1,2502.6,0.29962739]
[1730433527797,5.5017106,2503.1,2502.5,9.63119661]
[1730433527998,5.5017106,2503.1,2502.6,0.29962755]
[1730433528324,3.99525,2503.0,2502.5,5.63529661]
[1730433528619,3.99525,2503.0,2502.6,0.29963802]
[1730433528822,3.99525,2503.0,2502.5,5.63529661]
[1730433529164,3.99525,2503.0,2502.5,0.83679661]
[1730433529288,0.7725,2502.9,2502.5,0.83679661]
[1730433529628,0.7725,2502.9,2502.6,0.29963858]
[1730433529804,0.7725,2502.9,2502.5,4.83278661]
[1730433530007,0.7725,2502.9,2502.6,0.29963121]
[1730433530194,3.99552,2502.8,2502.5,0.91670797]
[1730433530526,0.7725,2502.9,2502.4,4.83294661]
[1730433530685,0.7725,2502.9,2502.5,0.29964521]
[1730433530883,0.7725,2502.9,2502.4,6.32834686]
[1730433531622,0.7725,2502.9,2502.5,0.29965237]
[1730433531833,0.7725,2502.9,2502.4,6.32826686]
[1730433531987,0.7725,2502.9,2502.5,0.29964554]
[1730433532187,0.7725,2502.9,2502.4,6.32824686]
[1730433532426,0.7725,2502.9,2502.5,1.27587573]
[1730433532725,0.7725,2502.9,2502.5,0.97622428]
[1730433532936,0.7725,2502.9,2502.5,5.05212564]
[1730433533326,0.7725,2502.9,2502.5,4.97221428]
[1730433534850,0.7725,2502.9,2502.5,5.88892225]
[1730433535019,0.7725,2502.9,2502.6,0.98849723]
[1730433536400,0.7725,2502.9,2502.5,5.80901089]
[1730433537604,0.7725,2502.9,2502.5,0.97622428]
[1730433538118,0.7725,2502.9,2502.5,1.81302089]
[1730433538322,0.7725,2502.9,2502.5,5.80900089]
[1730433538525,0.7725,2502.9,2502.6,0.29970252]
[1730433538720,0.7725,2502.9,2502.5,1.81302089]
[1730433538937,0.7725,2502.9,2502.6,0.2997028]
[1730433539109,0.7725,2502.9,2502.5,1.81302089]
[1730433539448,0.7725,2502.9,2502.5,5.80901089]
[1730433539650,0.7725,2502.9,2502.6,0.29973688]
[1730433539837,0.7725,2502.9,2502.5,5.80901089]
[1730433540145,0.7725,2502.9,2502.6,0.29973708]
[1730433540439,0.7725,2502.9,2502.5,5.80901089]
[1730433540652,0.7725,2502.9,2502.6,0.29976491]
[1730433540806,0.7725,2502.9,2502.5,0.83679661]
[1730433541003,0.7725,2502.9,2502.5,5.82685735]
[1730433541228,0.7725,2502.9,2502.6,0.29975989]
[1730433541445,0.7725,2502.9,2502.5,5.82685735]
[1730433541649,0.7725,2502.9,2502.6,0.29977176]
[1730433541806,0.7725,2502.9,2502.5,5.82685735]
[1730433542116,0.7725,2502.9,2502.6,1.25567201]
[1730433542307,0.7725,2502.9,2502.6,0.95590028]
[1730433544930,0.7725,2502.9,2502.6,1.79269689]
[1730433545125,0.7725,2502.9,2502.7,0.29980992]
[1730433545330,0.7725,2502.9,2502.6,1.79269689]
[1730433545655,0.7725,2502.9,2502.7,0.29981597]
[1730433545847,0.7725,2502.9,2502.6,1.79269689]
[1730433546054,0.7725,2502.9,2502.7,0.29981636]
[1730433546255,0.7725,2502.9,2502.6,1.79269689]
[1730433547960,0.7725,2502.9,2502.7,0.29982761]
[1730433548157,0.7725,2502.9,2502.6,0.83679661]
[1730433548470,0.7725,2502.9,2502.5,5.82685735]
[1730433548669,0.7725,2502.9,2502.6,0.29983639]
[1730433548972,0.7725,2502.9,2502.7,0.29983357]
[1730433549174,0.7725,2502.9,2502.6,0.83679661]
[1730433549368,0.7725,2502.9,2502.7,0.29983598]
[1730433549662,0.7725,2502.9,2502.6,0.83679661]
[1730433549872,0.7725,2502.9,2502.7,0.29983484]
[1730433550028,0.7725,2502.9,2502.6,0.83679661]
[1730433550643,0.7725,2502.9,2502.7,0.29983609]
[1730433550842,0.7725,2502.9,2502.6,0.83679661]
[1730433551056,0.7725,2502.9,2502.7,0.29983866]
[1730433551277,0.7725,2502.9,2502.6,0.83679661]
[1730433551503,0.7725,2502.9,2502.7,0.29983963]
[1730433551709,0.7725,2502.9,2502.6,0.83679661]
[1730433551842,0.7725,2502.9,2502.7,0.29984085]
[1730433552043,0.7725,2502.9,2502.6,0.83679661]
[1730433552253,0.7725,2502.9,2502.7,0.2998431]
[1730433552444,0.7725,2502.9,2502.6,0.83679661]
[1730433552670,0.7725,2502.9,2502.7,0.29985684]
[1730433552870,0.7725,2502.9,2502.6,2.08344828]
[1730433553056,0.7725,2502.9,2502.7,0.29985689]
[1730433553239,0.7725,2502.9,2502.6,2.08344828]
[1730433553444,0.7725,2502.9,2502.7,0.29985886]
[1730433553677,0.7725,2502.9,2502.6,6.07925828]
[1730433553984,0.7725,2502.9,2502.7,0.29986498]
[1730433554287,0.7725,2502.9,2502.6,6.07925828]
[1730433554456,1.5066306,2503.1,2502.7,0.29987905]
[1730433554791,1.5066306,2503.1,2502.7,1.69130699]
[1730433554792,0.8079,2503.1,2502.7,1.69130699]
[1730433554948,0.8079,2503.1,2502.7,6.60514342]
[1730433555374,0.8079,2503.1,2502.8,4.29536449]
[1730433555590,3.99488,2503.2,2502.7,2.60960342]
[1730433555759,2.3145306,2503.3,2502.8,0.29987171]
[1730433555966,6.3092906,2503.3,2502.7,6.52524304]
[1730433556199,5.5019906,2502.9,2502.8,0.29987372]
[1730433556395,0.8054,2502.6,2502.3,0.83679661]
[1730433556724,0.8054,2502.2,2502.0,0.83679661]
[1730433556862,0.8054,2502.2,2501.9,0.83679661]
[1730433557062,0.8054,2502.2,2502.0,0.83679661]
[1730433557378,0.8054,2502.2,2501.9,0.83679661]
[1730433557712,0.8054,2502.2,2502.0,0.29976261]
[1730433557867,0.8054,2502.2,2501.9,0.83679661]
[1730433558067,0.8054,2502.2,2502.1,3.99664]
[1730433558282,1.5066306,2502.4,2502.0,3.99679]
[1730433558480,5.5028006,2502.4,2502.0,1.15332215]
[1730433558707,1.5066306,2502.4,2502.0,1.15332215]
[1730433560006,1.5066306,2502.4,2502.0,5.15010215]
[1730433561369,5.5028306,2502.4,2502.0,1.15332215]
[1730433561611,1.5066306,2502.4,2502.0,5.15010215]
[1730433562598,1.5066306,2502.4,2502.1,1.34811022]
[1730433563010,0.8054,2502.5,2502.1,1.34811022]
[1730433563348,2.3078306,2502.8,2502.2,4.0763866]
[1730433563648,2.3078306,2502.8,2502.3,4.82669]
[1730433563831,2.3078306,2502.8,2502.3,5.93209462]
[1730433564136,2.3078306,2502.8,2502.3,5.93209481]
[1730433564938,1.5066306,2502.8,2502.3,1.93590481]
[1730433565143,4.82737,2503.0,2502.3,1.93590481]
[1730433565144,6.3340006,2503.0,2502.3,0.8305]
[1730433565315,6.3340006,2503.0,2502.4,3.99606]
[1730433565517,10.3293406,2503.0,2502.4,3.99606]
[1730433565917,6.3340006,2503.0,2502.4,3.99606]
[1730433566215,6.3340006,2503.0,2502.4,4.99197142]
[1730433566433,6.3340006,2503.0,2502.4,8.98802142]
[1730433566620,6.3340006,2503.0,2502.4,4.99196142]
[1730433567228,6.3340006,2503.0,2502.4,8.98803142]
[1730433567619,6.3340006,2503.0,2502.4,4.99196142]
[1730433568027,6.3340206,2503.0,2502.4,0.99591142]
[1730433568337,6.3340206,2503.0,2502.5,0.6659508]
[1730433568542,1.5066306,2502.8,2502.4,4.99206142]
[1730433569843,6.3340206,2503.0,2502.4,8.98821142]
[1730433570210,6.3340206,2503.0,2502.4,4.99206142]
[1730433570411,6.3340206,2503.0,2502.4,8.98813142]
[1730433570602,6.3340206,2503.0,2502.5,0.98186314]
[1730433571727,6.3340206,2503.0,2502.4,3.99605]
[1730433572243,6.3340206,2503.0,2502.5,3.99598]
[1730433573944,2.3387306,2503.0,2502.3,0.8305]
[1730433574144,2.3387306,2503.0,2502.5,7.99178]
[1730433574305,2.3387306,2503.0,2502.5,3.99589]
[1730433574507,2.3387306,2503.0,2502.6,0.399589]
[1730433575742,2.3387306,2503.0,2502.7,0.8025]
[1730433575951,0.8321,2503.0,2502.7,0.8025]
[1730433576103,3.99481,2503.3,2502.7,4.87799548]
[1730433576307,3.99481,2503.3,2502.8,0.48779955]
[1730433577141,7.98965,2503.3,2502.8,0.48779955]